Cogmind - Beta 16.1 @@@ ROGUE MODE // 2026.04.03 @ 11:30:24 Player: SunShine214 Result: Destroyed by GJ-8WH(j) with Overtuned Pulse Rifle Performance ------------- Evolutions (0) 0 Regions Visited (3) 600 Robots Destroyed (39) 195 Value Destroyed (1114) 1114 Prototype IDs (14) 280 Alien Tech Used (0) 0 Bonus (0) 0 TOTAL SCORE: 2189 Bonus ------- None Cogmind --------- Core Integrity 0/250 Matter 196/300 Energy 80/100 System Corruption 0% Temperature Cool (12) Movement Core (50) Location -8/Recycling Parts ------- > --- POWER (1) -------- (None) > --- PROPULSION (2) --- (None) > --- UTILITY (2) ------ Scrap Engine > --- WEAPON (2) ------- (None) > --- INVENTORY (5) ---- 1B-0RG's Assimilator Peak State ------------ > --- POWER ------------ Light Ion Engine > --- PROPULSION ------- Light Treads Light Treads > --- UTILITY ---------- Small Storage Unit Gun Armor > --- WEAPON ----------- Beam Cannon Grenade Launcher Subdweller Shrapnel Launcher Makeshift Hammer > --- INVENTORY -------- Light Nuclear Core Sensor Array Hacking Suite 1B-0RG's Assimilator [Rating: 28] Favorites ----------- Power Light Ion Engine Engine Light Ion Engine Propulsion Light Treads Treads Light Treads Utility Small Storage Unit Device Sensor Array Storage Small Storage Unit Protection Gun Armor Weapon Beam Cannon Energy Gun Small Laser Energy Cannon Beam Cannon Launcher Subdweller Shrapnel Launcher Impact Weapon Makeshift Hammer Slashing Weapon Mining Claw Build | -11 -10 -10 -8 ------- Run | Yrd Mat Sub Rec Slots Evolved . | . . . . Power . | . . . . Propulsion . | . . . . Utility . | . . . . Weapon . | . . . . Parts Attached 20 | 7 7 4 2 Power 2 | 1 1 . . Engine 2 | 1 1 . . Core . | . . . . Reactor . | . . . . Propulsion 3 | 2 . 1 . Treads 3 | 2 . 1 . Leg . | . . . . Wheel . | . . . . Hover . | . . . . Flight . | . . . . Utility 6 | 2 1 1 2 Device 4 | 1 1 . 2 Storage 1 | 1 . . . Processor . | . . . . Hackware . | . . . . Protection 1 | . . 1 . Artifact . | . . . . Weapon 9 | 2 5 2 . Energy Gun 3 | 2 1 . . Energy Cannon 2 | . 2 . . Ballistic Gun . | . . . . Ballistic Cannon . | . . . . Launcher 2 | . 1 1 . Special Weapon . | . . . . Impact Weapon 1 | . . 1 . Slashing Weapon 1 | . 1 . . Piercing Weapon . | . . . . Special Melee Weapon . | . . . . Unidentified Prototypes 1 | . . . 1 Parts Lost 10 | . 2 3 5 Power 1 | . . 1 . Propulsion 2 | . . 1 1 Utility 2 | . 1 . 1 Weapon 5 | . 1 1 3 Highest Loss Streak 5 | . 1 1 5 To Critical Strikes . | . . . . Average Backups 5 | . 7 4 3 Power . | . . . . Propulsion 1 | . 2 . . Utility 1 | . 1 2 1 Weapon 1 | . 2 . . Tool/Special . | . . . . Unused Backups 7 | . 2 2 3 Power 1 | . . . 1 Propulsion 2 | . 2 . . Utility 2 | . . 1 1 Weapon 1 | . . 1 . Tool/Special 1 | . . . 1 Average Slot Usage (%) 93 | . 98 97 70 Engine 11 | . 14 11 . Treads 23 | . 28 22 10 Device 6 | . 12 1 1 Storage 12 | . 14 12 10 Protection 5 | . . 9 11 Energy Gun 6 | . 14 . . Energy Cannon 10 | . 4 15 11 Launcher 7 | . 2 10 10 Impact Weapon 4 | . . 7 11 Slashing Weapon 3 | . 5 2 . Peak Build Rating 28 | 9 9 28 25 Average Rating 16 | 5 7 23 24 On Entrance 10 | . 9 8 25 Avg Prop Armor Cover (%) . | . . . . Naked Turns . | . . . . Heaviest Build 29 | 12 15 29 23 Greatest Support 40 | 40 40 40 20 Greatest Overweight (x) 3 | . . 1 3 Average Overweight (x) . | . . . 1 Largest Inventory Capacity 8 | 8 8 8 8 Average Capacity 7 | 7 8 8 7 Most Carried 8 | 2 8 8 8 Average Carried 7 | . 7 7 7 Final Capacity 8 | 8 8 8 5 Final Carried 8 | 2 8 8 5 Class Distribution -------------------- 89% | Mutant 10% | Gunner Dominant Class ---------------- Mutant | -10/Materials Mutant | -10/Subcaves Mutant | -8/Recycling Resources | -11 -10 -10 -8 ----------- Run | Yrd Mat Sub Rec Matter Collected 730 | 157 237 286 50 Remotely . | . . . . Salvage Created 1093 | 172 523 219 179 Parts 76 | 11 40 21 4 Haulers Intercepted 1 | . 1 . . Recyclers Shooed 2 | . 1 . 1 Parts Field Recycled . | . . . . Retrieved Matter . | . . . . Parts Self-Destructed 10 | . . 10 . Prevented . | . . . . Parts Restored . | . . . . Kills | -11 -10 -10 -8 ------- Run | Yrd Mat Sub Rec Combat Hostiles Destroyed 26 | . 12 10 4 Melee 1 | . . . 1 Guns 4 | . 4 . . Cannons 3 | . 2 1 . AOE 18 | . 6 9 3 Classes Destroyed 13 | 2 7 2 2 Worker 2 | . 2 . . Builder 1 | . 1 . . Tunneler 3 | 3 . . . Hauler 1 | . 1 . . Recycler 1 | 1 . . . Operator 1 | . 1 . . Turret 2 | . . 2 . Watcher 2 | . 2 . . Swarmer 5 | . 3 2 . Grunt 10 | . 9 1 . Sentry 2 | . . . 2 Subdweller 7 | . . 7 . Scrapper 2 | . . . 2 Best Kill Streak 7 | 3 7 4 2 Combat Bots Only 5 | . 5 4 2 Max Kills in Single Turn 4 | 1 4 2 1 Gunslinging 1 | . 1 . . Exploded 2 | . 2 2 1 Melee 1 | . . . 1 Uniques/NPCs Destroyed . | . . . . Combat | -11 -10 -10 -8 -------- Run | Yrd Mat Sub Rec Hostile Shots Fired 113 | . 30 39 44 Missed 41 | . 12 13 16 Hits 72 | . 18 26 28 Projectile 72 | . 18 26 28 Critical Strikes 1 | . . . 1 Damage Taken 1418 | . 313 453 652 Core 265 | . 16 27 222 Absorbed by Shields . | . . . . Core Remaining (%) 100 | 100 . . . Volleys Fired 65 | 10 30 14 11 Largest 3 | 2 2 3 2 Hottest 150 | 80 120 150 100 Shots Fired 131 | 20 58 36 17 Gun 60 | 20 40 . . Cannon 44 | . 13 20 11 Launcher 27 | . 5 16 6 Special . | . . . . Kinetic 14 | . . 8 6 Thermal 74 | 10 33 20 11 Explosive 13 | . 5 8 . Electromagnetic 30 | 10 20 . . Robot Hit Streak 19 | 17 19 15 7 Robot Miss Streak 4 | . 2 2 4 Penetration Max . | . . . . Secondary Targets 1 | . 1 . . Max Gunslinging Chain 1 | . 1 . . Shots Hit Robots 96 | 17 41 26 12 Core Hits 58 | 5 30 15 8 Critical Kills . | . . . . Critical Parts Destroyed 1 | . . . 1 Critical Strikes 1 | . . . 1 Smash 1 | . . . 1 Melee Attacks 15 | . 10 3 2 Impact 2 | . . . 2 Slashing 13 | . 10 3 . Piercing . | . . . . Sneak Attacks 2 | . 1 . 1 Combat Hostiles . | . . . . Follow-up Attacks . | . . . . Damage Inflicted 3137 | 200 1182 1160 595 Guns 571 | 200 371 . . Cannons 491 | . 159 191 141 Explosions 1887 | . 571 969 347 Melee 180 | . 73 . 107 Ramming 8 | . 8 . . Kinetic 873 | . . 526 347 Thermal 891 | 75 484 191 141 Explosive 820 | . 377 443 . Electromagnetic 365 | 125 240 . . Impact 107 | . . . 107 Slashing 73 | . 73 . . Piercing . | . . . . Highest Corruption . | . . . . Average Corruption . | . . . . Corruption Purged . | . . . . Corruption Blocked . | . . . . Overload Shots . | . . . . Overflow Damage 103 | . 26 27 50 Projectiles . | . . . . Explosions 39 | . 6 27 6 Melee 64 | . 20 . 44 Knockbacks . | . . . . Impact . | . . . . Kinetic . | . . . . Secondary . | . . . . Self-Inflicted Damage 192 | . 96 18 78 Shots 9 | . 4 2 3 Rammed 3 | . 3 . . Targets Rammed 3 | . 3 . . Kicked . | . . . . Crushed . | . . . . Highest Temperature 352 | 126 352 108 164 Average Temperature 72 | 53 84 38 78 Received Heat Transfer 523 | . 117 96 310 Siege Activations . | . . . . Martial Activations . | . . . . Shielding Activations . | . . . . Robots Disrupted . | . . . . Combat Hostiles . | . . . . Robots Corrupted . | . . . . Combat Hostiles . | . . . . Parts Fried . | . . . . Impact Corruptions 1 | . . . 1 Robots Melted . | . . . . Combat Hostiles . | . . . . Parts Melted 2 | . 1 . 1 Heat Transferred 1589 | 175 783 407 224 Parts Sabotaged . | . . . . Parts Stolen . | . . . . Parts Stripped . | . . . . Power Chain Reactions 2 | . 2 . . Alert | -11 -10 -10 -8 ------- Run | Yrd Mat Sub Rec Maximum Alert Level . | . . . . Low Security (%) 100 | 100 100 . 100 Level 1 . | . . . . Level 2 . | . . . . Level 3 . | . . . . Level 4 . | . . . . Level 5 . | . . . . High Security . | . . . . Max Security . | . . . . Peak Influence 173 | 5 173 . 124 Initial 56 | . . . 56 Average 52 | . 59 . 50 Influence Increases 834 | 20 502 170 142 Destroy 0b10 Robot/C 380 | . 240 100 40 Destroy 0b10 Robot/NC 55 | 20 35 . . Destroy Leader 76 | . 66 10 . Successful Hack 14 | . . . 14 Disable Machine 90 | . 60 . 30 Destroy Structure 159 | . 101 . 58 Lose Combat Pursuer 60 | . . 60 . Influence Decreases 834 | 20 381 173 260 Entered New Map 121 | . . 59 62 Time Decay 659 | 20 361 104 174 Lost Part 54 | . 20 10 24 Squads Dispatched 2 | . 2 . . Investigation 1 | . 1 . . Extermination . | . . . . Reinforcement 1 | . 1 . . Assault . | . . . . Garrison . | . . . . Intercept . | . . . . Searches Triggered . | . . . . Construction Impeded . | . . . . Haulers Reinforced . | . . . . Active Scanning Responses . | . . . . Cargo Convoy Interrupts . | . . . . Stealth | -11 -10 -10 -8 --------- Run | Yrd Mat Sub Rec Distress Signals . | . . . . Communications Jammed . | . . . . Distress Signals . | . . . . Times Spotted 40 | . 22 13 5 Peak Tracking Total 5 | . 5 4 3 Tactical Retreats 2 | . . 2 . Traps | -11 -10 -10 -8 ------- Run | Yrd Mat Sub Rec Traps Triggered 3 | . 1 2 . Indirectly . | . . . . Trap Hack Attempts . | . . . . Triggered . | . . . . Disarmed . | . . . . Reprogrammed . | . . . . Reused . | . . . . Traps Extracted . | . . . . Installed . | . . . . Triggered . | . . . . Machines | -11 -10 -10 -8 ---------- Run | Yrd Mat Sub Rec Machines Disabled 10 | . 4 4 2 Max in Single Turn 2 | . 2 2 1 Machines Repaired . | . . . . Machines Dismantled . | . . . . Machines Sabotaged . | . . . . Overloaded Fab Kills . | . . . . Hacking | -11 -10 -10 -8 --------- Run | Yrd Mat Sub Rec Machines Accessed 7 | . 2 1 4 Terminals 5 | . 2 . 3 Fabricators . | . . . . Repair Stations . | . . . . Recycling Units . | . . . . Scanalyzers . | . . . . Garrison Access . | . . . . Total Hacks 12 | . 4 1 7 Successful 7 | . 2 1 4 Failed 5 | . 2 . 3 Catastrophic 2 | . . . 2 Database Lockouts . | . . . . Manual 1 | . . . 1 Terminals 9 | . 4 . 5 Fabricators . | . . . . Repair Stations . | . . . . Recycling Units . | . . . . Scanalyzers . | . . . . Garrison Access . | . . . . Terminal Hacks 7 | . 2 1 4 Part Schematic 2 | . . . 2 Hauler Manifests 1 | . 1 . . Zone Layout 1 | . 1 . . Proto ID Catalog 1 | . . 1 . Release Object 2 | . . . 2 Fabricator Hacks . | . . . . Repair Station Hacks . | . . . . Recycling Unit Hacks . | . . . . Scanalyzer . | . . . . Garrison Access Hacks . | . . . . Unauthorized Hacks . | . . . . Terminals . | . . . . Fabricators . | . . . . Repair Stations . | . . . . Recycling Units . | . . . . Scanalyzers . | . . . . Garrison Access . | . . . . Data Cores Recovered . | . . . . Used . | . . . . Hacking Detections 2 | . 1 . 1 Full Trace Events 1 | . . . 1 Feedback Events . | . . . . Feedback Blocked . | . . . . Robot Schematics Acquired . | . . . . Robots Built . | . . . . Authchips . | . . . . Time . | . . . . Total Robot Build Rating . | . . . . Part Schematics Acquired 2 | . . . 2 Parts Built . | . . . . Authchips . | . . . . Time . | . . . . Total Part Build Rating . | . . . . Part Studies Acquired . | . . . . Parts Repaired . | . . . . Time . | . . . . Parts Recycled . | . . . . Recycled Matter . | . . . . Retrieved Matter . | . . . . Retrieved Components . | . . . . Parts Scanalyzed . | . . . . Part Schematics Acquired . | . . . . Parts Damaged . | . . . . Bothacking | -11 -10 -10 -8 ------------ Run | Yrd Mat Sub Rec Used RIF Installer . | . . . . Robots Hacked . | . . . . Non-combat . | . . . . Combat . | . . . . Robot Hacks Applied . | . . . . Relay Couplers Released . | . . . . Fabnet Peak Effective % . | . . . . Robots Rewired . | . . . . Allies Hacked . | . . . . Hacks Repelled . | . . . . Allies | -11 -10 -10 -8 -------- Run | Yrd Mat Sub Rec Total Allies . | . . . . Largest Group . | . . . . Highest-Rated Group . | . . . . Highest-Rated Ally . | . . . . Total Orders . | . . . . Ally Attacks . | . . . . Total Damage . | . . . . Kills . | . . . . Allies Corrupted . | . . . . Allies Melted . | . . . . Intel | -11 -10 -10 -8 ------- Run | Yrd Mat Sub Rec Active Infowar (turns) 1327 | 38 1098 161 30 Sensors 1033 | . 842 161 30 Terrain 294 | 38 256 . . Robot Analysis Total . | . . . . Derelict Logs Recovered 1 | . . 1 . Drone Launches . | . . . . Drone Recoveries . | . . . . Exploration | -11 -10 -10 -8 ------------- Run | Yrd Mat Sub Rec Turns Passed 2939 | 135 1208 1199 397 Spaces Moved 1539 | 59 657 662 161 Core 22 | 1 . . 21 Treads 1517 | 58 657 662 140 Legs . | . . . . Wheels . | . . . . Hover . | . . . . Flight . | . . . . Fastest Speed 50 | 50 160 160 50 Average Speed 170 | 158 160 169 223 Slowest Speed 240 | 160 160 240 240 Overloaded Moves . | . . . . Propulsion Burnouts . | . . . . Robots Hopped . | . . . . Potential Cave-ins . | . . . . Cave-ins Triggered . | . . . . Exploration Rate (%) 45 | 4 95 47 34 Regions Visited 3 Branch Regions 2 Pre-discovered Areas . | . . . . Known Exits Taken . | . . . . Unknown Exits Taken 3 | 1 1 1 . Scrap Searched 3 | . . 3 . Spaces Dug 5 | . 5 . . Terrain Destroyed 361 | . 106 166 89 Melee 5 | . 5 . . Projectile . | . . . . AOE 356 | . 101 166 89 Terrain Rammed . | . . . . Walls Destroyed . | . . . . Machines Disabled . | . . . . Actions | -11 -10 -10 -8 --------- Run | Yrd Mat Sub Rec Total 1689 | 77 732 702 178 Wait 12 | . 7 5 . Move 1536 | 58 656 661 161 Hop . | . . . . Pick Up 17 | 2 11 4 . Fast Attach 10 | 7 . 1 2 Attach 4 | . 2 2 . Detach 1 | . . . 1 Swap 14 | . 9 5 . Drop 12 | . 4 7 1 Fire 65 | 10 30 14 11 Melee 15 | . 10 3 2 Ram . | . . . . Kick . | . . . . Crush 3 | . 3 . . Escape Stasis . | . . . . Rewire . | . . . . Trap . | . . . . Miscellaneous . | . . . . Route ------- -11/Scrapyard -10/Materials (discovered 5 exits: [*Mat x3] / [*Min] / *Sub) -10/Subcaves (discovered 3 exits: [*Mat x2] / *Rec) -8/Recycling History --------- Turn | Location | Event 35 | -11/Scrapyard | Discovered new exit (range 16) 136 | -11/Scrapyard | Entered Materials 175 | -10/Materials | Discovered new exit (range 15) 308 | -10/Materials | Build established: Mutant 446 | -10/Materials | Discovered new exit (range 15) 777 | -10/Materials | Discovered new exit (range 16) 1059 | -10/Materials | Discovered new exit (range 10) 1324 | -10/Materials | Discovered new exit (range 13) 1344 | -10/Materials | Entered Subcaves 1468 | -10/Subcaves | Visited 4L-MR0's lab 1481 | -10/Subcaves | Found Prototype Special Melee Weapon 1511 | -10/Subcaves | Found Gun Armor 1512 | -10/Subcaves | Attached Gun Armor, gained temporary slots: Weapon x2 1586 | -10/Subcaves | Ambushed by Subdwellers from Twisted Machinery 1795 | -10/Subcaves | Discovered new exit (range 5) 1801 | -10/Subcaves | Disturbed a concealed Subdweller 1801 | -10/Subcaves | Build established: Gunner 1809 | -10/Subcaves | Ambushed by Subdweller buried in earth 1816 | -10/Subcaves | Ambushed by Subdweller buried in earth 1819 | -10/Subcaves | Ambushed by Subdweller buried in earth 1842 | -10/Subcaves | Discovered new exit (range 15) 2010 | -10/Subcaves | Shifting Twisted Machinery released Flamer 2105 | -10/Subcaves | Build established: Mutant 2426 | -10/Subcaves | Learned Materials garrison access intel 2511 | -10/Subcaves | Discovered new exit (range 12) 2543 | -10/Subcaves | Entered Recycling 2863 | -8/Recycling | Scanned before Scraplab entrance 2887 | -8/Recycling | Angered Scraplab inhabitants 2919 | -8/Recycling | Core integrity fell below 50% 2936 | -8/Recycling | Core integrity fell below 20% 2936 | -8/Recycling | Found Prototype Device 2936 | -8/Recycling | Identified Scrap Engine 2940 | -8/Recycling | Destroyed by GJ-8WH(j) with Overtuned Pulse Rifle Last Messages --------------- effect. 02923_ Lgt. Deuterium Engine melted. 02923_ RA-CC3(j) destroyed. 02925_ U-05 Engineer lays Concrete. 02925_ Acquired 50 matter. 02926_ U-05 Engineer lays Concrete. 02929_ Mak. Hammer destroyed. 02929_ Critical hit (Burn: +50). 02930_ U-05 Engineer lays Concrete. 02933_ Connecting with Scraplab SEP... >>Release Inventory Accessing inventory controls... Prototype released... URGENT: Link to external system right away! 02935_ Dropped Sensor Array. 02936_ Discarded Gun Armor. 02936_ Acquired Prototype Device. 02936_ Identified Scrap Engine. 02939_ GJ-8WH(j) heat short circuits Mak. Salvage Targeting Computer. Map ----- +----------------------------------------------------+ | | | | | | | | | | | | | | | | | | | | | | | | | | | | | | | | | | | | | | | | | | | ?????????????????### #########??????????????? | | ?????????????????# #"""""""#??????????????? | | ????????????????## # " X!" ## #???????????? | | ????????????????# ;# #???????????? | | ?????????????????# @j c #???????????? | | ????????????????##*% ! # "#???????????? | | ????????????????# # c ""#???????????? | | ????????????????## #"& "& X ""#???????????? | | ?????????????????# #"""""""" #???????????? | | ????????????????## ""############???????????? | | ???????????????## * #?????????????????????? | | ???????????????#; ! ##?????????????????????? | | ??????????????# #u "#??????????????????????? | | ??????????????##; "#??????????????????????? | | #??????????????#####+#####??????????????????????? | | #??????????????????# #??????????????????????????? | | #????????#?######### #??????????????????????????? | | #????????# """ """ + #??????????????????????????? | | ########?# """ """ # #??????????????????????????? | | + #?# """ """ # #??????????????????????????? | | ###### #?# # #??????????????????????????? | | #????# #?# # #??????????????????????????? | | #????# #?# # #??????????????????????????? | | #????# #?# + #??????????????????????????? | | ###### #?# # #??????????????????????????? | | / #?########+## #??????????????????????????? | | ###### #????????# #??????????????????????????? | | #????# ########## #??????????????????????????? | | #????# ##+#???????????????????????? | +----------------------------------------------------+ Best States ------------- Heat Dissipation 25 Energy Generation 10 Energy Capacity 125 Matter Stores 300 Matter Capacity 300 Sight Range 16 Robot Scan Range 14 Terrain Scan Range 16 Terrain Scan Density 10 Armor Coverage 60 Evasion (%) 50 Recoil Reduction 2 Item Schematics ----------------- Lrg. Storage Unit | -8/Recycling | Hacked Hyp. Gauss Rifle | -8/Recycling | Hacked Robot Schematics ------------------ None Fabricated ------------ Nothing Repaired ---------- Nothing Studied --------- None Alien Tech Used ----------------- None Achievements -------------- None Challenges ------------ None Game ------ Seed AerolevSuperquantumRipper Manual? 0 Play Time 00:16:13 Cumulative 120.1 hours Start 2026.04.03 @ 11:16:19 End 2026.04.03 @ 11:30:24 Sessions 1 Manual Loads 0 Difficulty Rogue Special Mode None Game No. 177 Rogue 177 Adventurer 0 Explorer 0 Win Type - Total 1 Types 1/0/0/0/0/0/0/0/0/0 Lore% 50 Gallery% 52 Achievement% 39 Wizard Run 0 Options --------- Layout 1 ASCII 0 Keyboard 1 Movement Arrows Keybinds 0 Fullscreen 1 Font 24/Smallcaps Map View 50x35 Zoom Use 0% Tactical HUD 1 Map Filters NONE Filters NONE Steam 1 RUN: 905c1cbd-1ab8-4f43-a343-0f1622e726dc